[Event "Late-Titled-Tuesday-Blitz-April-16-2024"]
[Site "Chess.com"]
[Date "2024.04.16"]
[Round "4"]
[White "JiangoFett"]
[Black "ExchangeAB"]
[Result "1-0"]
[WhiteElo "2549"]
[BlackElo "2394"]
[TimeControl "180+1"]
[EndTime "14:37:05 PDT"]
[Termination "JiangoFett won by resignation"]

1. c4 {[%clk 0:03:00.9]} 1... c6 {[%clk 0:02:58.9]} 2. d4 {[%clk 0:03:00.3]}
2... d5 {[%clk 0:02:59.8]} 3. Nf3 {[%clk 0:03:00.4]} 3... Nf6 {[%clk 0:02:59.8]}
4. Nc3 {[%clk 0:03:00.8]} 4... dxc4 {[%clk 0:03:00.4]} 5. a4 {[%clk 0:03:01.2]}
5... Bf5 {[%clk 0:03:00.9]} 6. Ne5 {[%clk 0:03:01.5]} 6... Nbd7 {[%clk
0:03:00.3]} 7. Nxc4 {[%clk 0:03:01.6]} 7... Nb6 {[%clk 0:02:57.5]} 8. Ne5 {[%clk
0:03:01.5]} 8... a5 {[%clk 0:02:58.1]} 9. e3 {[%clk 0:03:00.5]} 9... Nfd7 {[%clk
0:02:55.2]} 10. Nf3 {[%clk 0:02:50.5]} 10... e6 {[%clk 0:02:54]} 11. e4 {[%clk
0:02:47.3]} 11... Bg6 {[%clk 0:02:54]} 12. h4 {[%clk 0:02:42.8]} 12... Bh5
{[%clk 0:02:49.8]} 13. Be3 {[%clk 0:02:33.1]} 13... Bb4 {[%clk 0:02:41.1]} 14.
Bd3 {[%clk 0:02:24.8]} 14... O-O {[%clk 0:02:39.3]} 15. Qc2 {[%clk 0:02:17]}
15... c5 {[%clk 0:02:13.2]} 16. Rd1 {[%clk 0:01:47.8]} 16... cxd4 {[%clk
0:02:04.6]} 17. Bxd4 {[%clk 0:01:43.8]} 17... e5 {[%clk 0:01:58.1]} 18. Be3
{[%clk 0:01:35.8]} 18... Qe7 {[%clk 0:01:52.9]} 19. Be2 {[%clk 0:01:11.7]} 19...
Rac8 {[%clk 0:01:47.6]} 20. O-O {[%clk 0:01:08.7]} 20... Nc4 {[%clk 0:01:40.7]}
21. Bg5 {[%clk 0:01:02.4]} 21... Qe6 {[%clk 0:01:32.5]} 22. Qb3 {[%clk
0:00:52.9]} 22... Ndb6 {[%clk 0:01:22.6]} 23. Nd5 {[%clk 0:00:49.7]} 23... f6
{[%clk 0:01:13.3]} 24. Nxb6 {[%clk 0:00:45.7]} 24... Qxb6 {[%clk 0:01:04.6]} 25.
Bxc4+ {[%clk 0:00:45.4]} 25... Bf7 {[%clk 0:01:02.1]} 26. Bxf7+ {[%clk
0:00:43.4]} 26... Rxf7 {[%clk 0:01:03]} 27. Be3 {[%clk 0:00:43.8]} 27... Qc6
{[%clk 0:00:47.4]} 28. Qd5 {[%clk 0:00:44]} 28... Qxa4 {[%clk 0:00:39.6]} 29.
Rc1 {[%clk 0:00:39.5]} 29... Rf8 {[%clk 0:00:36.9]} 30. Rc7 {[%clk 0:00:35.5]}
30... b5 {[%clk 0:00:26.4]} 31. Rfc1 {[%clk 0:00:34.3]} 31... g6 {[%clk
0:00:06.9]} 32. Rxf7 {[%clk 0:00:33.5]} 32... Rxf7 {[%clk 0:00:07.2]} 33. Rc7
{[%clk 0:00:33.1]} 33... Be7 {[%clk 0:00:07.2]} 34. Rxe7 {[%clk 0:00:31.6]}
34... Qd1+ {[%clk 0:00:07.8]} 35. Qxd1 {[%clk 0:00:31.2]} 1-0

[Event "Late-Titled-Tuesday-Blitz-April-16-2024"]
[Site "Chess.com"]
[Date "2024.04.16"]
[Round "4"]
[White "noblerone"]
[Black "cukus"]
[Result "0-1"]
[WhiteElo "2484"]
[BlackElo "2336"]
[TimeControl "180+1"]
[EndTime "14:37:05 PDT"]
[Termination "cukus won by resignation"]

1. d4 {[%clk 0:02:59.8]} 1... Nf6 {[%clk 0:00:41.3]} 2. Nf3 {[%clk 0:02:57.6]}
2... g6 {[%clk 0:00:41.8]} 3. Bg5 {[%clk 0:02:57.6]} 3... Bg7 {[%clk 0:00:42]}
4. Nbd2 {[%clk 0:02:57.4]} 4... d5 {[%clk 0:00:41.8]} 5. e3 {[%clk 0:02:57.5]}
5... O-O {[%clk 0:00:42.4]} 6. Bd3 {[%clk 0:02:56.7]} 6... c5 {[%clk 0:00:42.9]}
7. c3 {[%clk 0:02:56.3]} 7... Nc6 {[%clk 0:00:43.8]} 8. O-O {[%clk 0:02:56]}
8... Qb6 {[%clk 0:00:44.4]} 9. Qb3 {[%clk 0:02:53.7]} 9... Be6 {[%clk
0:00:44.6]} 10. h3 {[%clk 0:02:32.3]} 10... Nd7 {[%clk 0:00:38.9]} 11. Rfe1
{[%clk 0:02:25.1]} 11... f6 {[%clk 0:00:38.9]} 12. Bh4 {[%clk 0:02:25]} 12...
Bf7 {[%clk 0:00:39.3]} 13. e4 {[%clk 0:01:58]} 13... dxe4 {[%clk 0:00:38.9]} 14.
Nxe4 {[%clk 0:01:58]} 14... Bxb3 {[%clk 0:00:38.2]} 15. axb3 {[%clk 0:01:53.6]}
15... cxd4 {[%clk 0:00:38.1]} 16. c4 {[%clk 0:01:52.7]} 16... Nce5 {[%clk
0:00:37]} 17. Be2 {[%clk 0:01:44.7]} 17... Nxf3+ {[%clk 0:00:36.8]} 18. Bxf3
{[%clk 0:01:45.3]} 18... Ne5 {[%clk 0:00:37.1]} 19. Bd1 {[%clk 0:01:43.5]} 19...
d3 {[%clk 0:00:35.3]} 20. Nc3 {[%clk 0:01:41.6]} 20... e6 {[%clk 0:00:32.5]} 21.
Bg3 {[%clk 0:01:39.6]} 21... Rfd8 {[%clk 0:00:31.9]} 22. Na4 {[%clk 0:01:36.3]}
22... Qc6 {[%clk 0:00:30.4]} 23. f4 {[%clk 0:01:36.8]} 23... Nf7 {[%clk
0:00:29.3]} 24. Bf3 {[%clk 0:01:37.1]} 24... Qd6 {[%clk 0:00:28.5]} 25. Red1
{[%clk 0:01:35.9]} 25... Rab8 {[%clk 0:00:25.1]} 26. Nc3 {[%clk 0:01:36.3]}
26... f5 {[%clk 0:00:23.9]} 27. Bf2 {[%clk 0:01:35.9]} 27... Bd4 {[%clk
0:00:23.5]} 28. Nb5 {[%clk 0:01:30.9]} 28... Bxf2+ {[%clk 0:00:23.3]} 29. Kxf2
{[%clk 0:01:31.7]} 29... Qc5+ {[%clk 0:00:23.7]} 30. Kf1 {[%clk 0:01:30.8]}
30... a6 {[%clk 0:00:22.6]} 31. Nc3 {[%clk 0:01:30.4]} 31... Rd4 {[%clk
0:00:19.2]} 32. g3 {[%clk 0:01:29.2]} 32... Nd6 {[%clk 0:00:19.6]} 33. Kg2
{[%clk 0:01:24.6]} 33... Ne4 {[%clk 0:00:19.6]} 34. Na4 {[%clk 0:01:24.8]} 34...
Qb4 {[%clk 0:00:19.1]} 35. Ra3 {[%clk 0:01:25.1]} 35... Nd2 {[%clk 0:00:17.1]}
36. Nc3 {[%clk 0:01:21.5]} 36... Nxb3 {[%clk 0:00:13.2]} 37. Ra4 {[%clk
0:01:16.1]} 37... Qb6 {[%clk 0:00:10.8]} 38. h4 {[%clk 0:01:09.2]} 38... Nc5
{[%clk 0:00:10.6]} 39. Ra2 {[%clk 0:01:07.8]} 39... Rxc4 {[%clk 0:00:10.5]} 40.
h5 {[%clk 0:01:05.8]} 40... Rb4 {[%clk 0:00:10]} 41. Rd2 {[%clk 0:01:04.2]}
41... Ne4 {[%clk 0:00:09.2]} 42. Bxe4 {[%clk 0:01:02.1]} 42... fxe4 {[%clk
0:00:09.3]} 43. Nd1 {[%clk 0:01:02.9]} 43... e3 {[%clk 0:00:08.2]} 44. Rxd3
{[%clk 0:01:02.5]} 44... e2 {[%clk 0:00:08.3]} 0-1

[Event "Late-Titled-Tuesday-Blitz-April-16-2024"]
[Site "Chess.com"]
[Date "2024.04.16"]
[Round "4"]
[White "JaloliddinIlkhomi"]
[Black "maximnovik"]
[Result "0-1"]
[WhiteElo "2775"]
[BlackElo "2574"]
[TimeControl "180+1"]
[EndTime "14:37:06 PDT"]
[Termination "maximnovik won on time"]

1. Nf3 {[%clk 0:03:00.9]} 1... Nf6 {[%clk 0:02:59.5]} 2. c4 {[%clk 0:03:00.5]}
2... c5 {[%clk 0:02:58.1]} 3. g3 {[%clk 0:02:57.2]} 3... b6 {[%clk 0:02:58]} 4.
Bg2 {[%clk 0:02:57]} 4... Bb7 {[%clk 0:02:58.6]} 5. Nc3 {[%clk 0:02:55.4]} 5...
g6 {[%clk 0:02:58.5]} 6. O-O {[%clk 0:02:55.8]} 6... Bg7 {[%clk 0:02:58.8]} 7.
b3 {[%clk 0:02:56.5]} 7... O-O {[%clk 0:02:58.2]} 8. Bb2 {[%clk 0:02:57]} 8...
d6 {[%clk 0:02:44.7]} 9. d4 {[%clk 0:02:53.6]} 9... cxd4 {[%clk 0:02:44.5]} 10.
Qxd4 {[%clk 0:02:54.5]} 10... Nbd7 {[%clk 0:02:43.5]} 11. Qd2 {[%clk 0:02:44.4]}
11... Rc8 {[%clk 0:02:43.3]} 12. Rfd1 {[%clk 0:02:42.9]} 12... a6 {[%clk
0:02:43.4]} 13. Rac1 {[%clk 0:02:42.2]} 13... Rc5 {[%clk 0:02:39]} 14. Ne1
{[%clk 0:02:22]} 14... Bxg2 {[%clk 0:02:34.3]} 15. Nxg2 {[%clk 0:02:22.9]} 15...
Qb8 {[%clk 0:02:30.8]} 16. e4 {[%clk 0:02:17.6]} 16... Qb7 {[%clk 0:02:29]} 17.
Nd5 {[%clk 0:02:16.4]} 17... Nxd5 {[%clk 0:02:04.9]} 18. Bxg7 {[%clk 0:02:16.6]}
18... Kxg7 {[%clk 0:02:01.5]} 19. exd5 {[%clk 0:02:17.1]} 19... b5 {[%clk
0:01:56.3]} 20. Qg5 {[%clk 0:02:09.1]} 20... Ne5 {[%clk 0:01:50.2]} 21. Qe3
{[%clk 0:01:46.7]} 21... bxc4 {[%clk 0:01:49.3]} 22. bxc4 {[%clk 0:01:41]} 22...
Rfc8 {[%clk 0:01:31.5]} 23. h4 {[%clk 0:00:47.1]} 23... h5 {[%clk 0:01:28.5]}
24. Nf4 {[%clk 0:00:38.1]} 24... Rxc4 {[%clk 0:01:24.9]} 25. Rxc4 {[%clk
0:00:35.8]} 25... Rxc4 {[%clk 0:01:24.5]} 26. Kg2 {[%clk 0:00:27.6]} 26... Qb2
{[%clk 0:01:18.6]} 27. Rd2 {[%clk 0:00:25.5]} 27... Qb1 {[%clk 0:01:14]} 28. Nh3
{[%clk 0:00:05.8]} 28... Rc1 {[%clk 0:01:02.8]} 29. f4 {[%clk 0:00:03.8]} 29...
Rh1 {[%clk 0:00:59.7]} 30. Rf2 {[%clk 0:00:02]} 30... Ng4 {[%clk 0:00:54.4]} 31.
Qc3+ {[%clk 0:00:02.6]} 31... Kh7 {[%clk 0:00:53.4]} 32. Ng5+ {[%clk 0:00:02.4]}
32... Kg8 {[%clk 0:00:52.6]} 33. Qc8+ {[%clk 0:00:03]} 33... Kg7 {[%clk
0:00:51.9]} 34. Qc3+ {[%clk 0:00:03.4]} 34... f6 {[%clk 0:00:52]} 35. Ne6+
{[%clk 0:00:03.9]} 35... Kh6 {[%clk 0:00:52.2]} 36. f5 {[%clk 0:00:01.5]} 36...
Rh2+ {[%clk 0:00:50.6]} 0-1

[Event "Late-Titled-Tuesday-Blitz-April-16-2024"]
[Site "Chess.com"]
[Date "2024.04.16"]
[Round "4"]
[White "AlphaGoosee"]
[Black "BardArtem"]
[Result "0-1"]
[WhiteElo "2581"]
[BlackElo "2829"]
[TimeControl "180+1"]
[EndTime "14:37:13 PDT"]
[Termination "BardArtem won by resignation"]

1. e4 {[%clk 0:02:57.1]} 1... d5 {[%clk 0:02:56]} 2. exd5 {[%clk 0:02:57]} 2...
Qxd5 {[%clk 0:02:56.9]} 3. Nc3 {[%clk 0:02:57.5]} 3... Qe5+ {[%clk 0:02:57.3]}
4. Be2 {[%clk 0:02:55.6]} 4... Bg4 {[%clk 0:02:56.8]} 5. d4 {[%clk 0:02:56.2]}
5... Bxe2 {[%clk 0:02:57.1]} 6. Ngxe2 {[%clk 0:02:57.1]} 6... Qa5 {[%clk
0:02:57.8]} 7. b4 {[%clk 0:02:57.1]} 7... Qxb4 {[%clk 0:02:58.3]} 8. O-O {[%clk
0:02:53.9]} 8... Nf6 {[%clk 0:02:57]} 9. Rb1 {[%clk 0:02:45.5]} 9... Qc4 {[%clk
0:02:57]} 10. Rxb7 {[%clk 0:02:43.1]} 10... e6 {[%clk 0:02:57.1]} 11. Bf4 {[%clk
0:02:42.3]} 11... Na6 {[%clk 0:02:56.8]} 12. Qd3 {[%clk 0:02:34.2]} 12... Qxd3
{[%clk 0:02:52.6]} 13. cxd3 {[%clk 0:02:35.1]} 13... Kd7 {[%clk 0:02:51.4]} 14.
Rb3 {[%clk 0:01:31]} 14... Bb4 {[%clk 0:02:46]} 15. a3 {[%clk 0:01:20]} 15...
Bxc3 {[%clk 0:02:36]} 16. Nxc3 {[%clk 0:01:20.9]} 16... Rab8 {[%clk 0:02:36.2]}
17. Rfb1 {[%clk 0:01:21.5]} 17... Rxb3 {[%clk 0:02:36.5]} 18. Rxb3 {[%clk
0:01:22.4]} 18... Rb8 {[%clk 0:02:37.2]} 19. Rxb8 {[%clk 0:01:21.3]} 19... Nxb8
{[%clk 0:02:38.1]} 20. Be5 {[%clk 0:01:17.7]} 20... Nc6 {[%clk 0:02:34.6]} 21.
f4 {[%clk 0:01:14.3]} 21... Ne8 {[%clk 0:02:24.4]} 22. d5 {[%clk 0:01:06.5]}
22... exd5 {[%clk 0:02:22.4]} 23. Nxd5 {[%clk 0:01:07.4]} 23... Nxe5 {[%clk
0:02:22.8]} 24. fxe5 {[%clk 0:01:07.2]} 24... Ke6 {[%clk 0:02:23.4]} 25. Nb4
{[%clk 0:01:05.7]} 25... Kxe5 {[%clk 0:02:06.5]} 26. Nc6+ {[%clk 0:01:05.1]}
26... Kd5 {[%clk 0:02:07.1]} 27. Nxa7 {[%clk 0:01:05.7]} 27... Nd6 {[%clk
0:02:07.7]} 28. a4 {[%clk 0:01:01.5]} 28... Kc5 {[%clk 0:01:46.2]} 29. a5 {[%clk
0:00:56.8]} 29... Kb4 {[%clk 0:01:27]} 30. Nc6+ {[%clk 0:00:34.8]} 30... Kb5
{[%clk 0:01:27]} 31. Ne5 {[%clk 0:00:24.5]} 31... Kxa5 {[%clk 0:01:27.4]} 32.
Kf2 {[%clk 0:00:24.8]} 32... Kb4 {[%clk 0:01:24.8]} 33. Ke3 {[%clk 0:00:22.8]}
33... Kc5 {[%clk 0:01:24.4]} 34. Nf3 {[%clk 0:00:19.6]} 34... Kd5 {[%clk
0:01:14.9]} 35. g4 {[%clk 0:00:20]} 35... f6 {[%clk 0:01:10.5]} 36. h4 {[%clk
0:00:19.8]} 36... c5 {[%clk 0:01:02.7]} 37. Ne1 {[%clk 0:00:16.8]} 37... Nf7
{[%clk 0:01:02.7]} 38. Ng2 {[%clk 0:00:13.7]} 38... g5 {[%clk 0:00:59.5]} 39.
hxg5 {[%clk 0:00:07.4]} 39... fxg5 {[%clk 0:01:00.4]} 40. Ne1 {[%clk 0:00:03.4]}
40... Ne5 {[%clk 0:00:59.8]} 41. Nc2 {[%clk 0:00:02.8]} 41... Nxg4+ {[%clk
0:00:59.9]} 42. Kf3 {[%clk 0:00:03.7]} 42... Ne5+ {[%clk 0:01:00.2]} 43. Ke3
{[%clk 0:00:04.6]} 43... h5 {[%clk 0:00:58]} 44. Ne1 {[%clk 0:00:04.8]} 44... h4
{[%clk 0:00:57.3]} 45. Ng2 {[%clk 0:00:05.7]} 45... h3 {[%clk 0:00:57.5]} 46.
Ne1 {[%clk 0:00:06]} 46... h2 {[%clk 0:00:58.1]} 0-1

[Event "Late-Titled-Tuesday-Blitz-April-16-2024"]
[Site "Chess.com"]
[Date "2024.04.16"]
[Round "4"]
[White "TiagoMangialardo"]
[Black "HanSchut"]
[Result "0-1"]
[WhiteElo "2069"]
[BlackElo "2321"]
[TimeControl "180+1"]
[EndTime "14:37:13 PDT"]
[Termination "HanSchut won on time"]

1. e4 {[%clk 0:03:00.9]} 1... c5 {[%clk 0:02:59]} 2. Nf3 {[%clk 0:03:00.8]} 2...
d6 {[%clk 0:02:59.2]} 3. Bb5+ {[%clk 0:03:00.6]} 3... Nd7 {[%clk 0:02:58.5]} 4.
a4 {[%clk 0:02:53]} 4... Nf6 {[%clk 0:02:55.2]} 5. Qe2 {[%clk 0:02:40]} 5... g6
{[%clk 0:02:47.3]} 6. h3 {[%clk 0:02:12.9]} 6... Bg7 {[%clk 0:02:46.8]} 7. O-O
{[%clk 0:01:56.9]} 7... O-O {[%clk 0:02:46.4]} 8. c3 {[%clk 0:01:56.8]} 8... a6
{[%clk 0:02:40.9]} 9. Bc4 {[%clk 0:01:45.4]} 9... Ne5 {[%clk 0:02:40.4]} 10.
Nxe5 {[%clk 0:01:23.3]} 10... dxe5 {[%clk 0:02:40.1]} 11. d3 {[%clk 0:01:22.6]}
11... Bd7 {[%clk 0:02:33.9]} 12. a5 {[%clk 0:01:18.7]} 12... Bb5 {[%clk
0:02:19.9]} 13. Be3 {[%clk 0:00:49.3]} 13... Bxc4 {[%clk 0:02:18.5]} 14. dxc4
{[%clk 0:00:50.2]} 14... Qc7 {[%clk 0:02:18.9]} 15. Nd2 {[%clk 0:00:47.9]} 15...
Rfd8 {[%clk 0:02:08.9]} 16. f4 {[%clk 0:00:36.8]} 16... exf4 {[%clk 0:02:07.1]}
17. Bxf4 {[%clk 0:00:36.4]} 17... Qc6 {[%clk 0:01:56.7]} 18. e5 {[%clk
0:00:29.8]} 18... Nd7 {[%clk 0:01:53]} 19. Rae1 {[%clk 0:00:18.1]} 19... Nf8
{[%clk 0:01:43.5]} 20. Qf2 {[%clk 0:00:12.2]} 20... Rac8 {[%clk 0:01:36]} 21.
Ne4 {[%clk 0:00:07.6]} 21... h6 {[%clk 0:01:31.2]} 22. Bg3 {[%clk 0:00:03.8]}
22... f5 {[%clk 0:00:59.3]} 23. exf6 {[%clk 0:00:04.7]} 23... exf6 {[%clk
0:00:57]} 24. Nxf6+ {[%clk 0:00:04.9]} 24... Bxf6 {[%clk 0:00:48.5]} 25. Qxf6
{[%clk 0:00:03.9]} 25... Qxf6 {[%clk 0:00:49.2]} 26. Rxf6 {[%clk 0:00:04.2]}
26... Rd7 {[%clk 0:00:42.4]} 27. Bd6 {[%clk 0:00:03.2]} 27... Kg7 {[%clk
0:00:38.9]} 28. Ref1 {[%clk 0:00:02.4]} 28... Nh7 {[%clk 0:00:36.5]} 29. Re6
{[%clk 0:00:01.3]} 29... Ng5 {[%clk 0:00:30.6]} 30. Be5+ {[%clk 0:00:01.3]}
30... Kh7 {[%clk 0:00:28]} 31. Rb6 {[%clk 0:00:01.4]} 31... Nf7 {[%clk
0:00:24.9]} 0-1

[Event "Late-Titled-Tuesday-Blitz-April-16-2024"]
[Site "Chess.com"]
[Date "2024.04.16"]
[Round "4"]
[White "HansOnTwitch"]
[Black "DanielDardha2005"]
[Result "1-0"]
[WhiteElo "3169"]
[BlackElo "2867"]
[TimeControl "180+1"]
[EndTime "14:37:16 PDT"]
[Termination "HansOnTwitch won by resignation"]

1. e4 {[%clk 0:02:59.8]} 1... c5 {[%clk 0:02:55.7]} 2. Nf3 {[%clk 0:02:58.9]}
2... Nc6 {[%clk 0:02:56.2]} 3. Bb5 {[%clk 0:02:57.7]} 3... e6 {[%clk 0:02:55.4]}
4. O-O {[%clk 0:02:57.1]} 4... Nge7 {[%clk 0:02:54.5]} 5. Re1 {[%clk 0:02:55.1]}
5... a6 {[%clk 0:02:54.3]} 6. Bf1 {[%clk 0:02:54.6]} 6... d5 {[%clk 0:02:54.5]}
7. exd5 {[%clk 0:02:54.9]} 7... Nxd5 {[%clk 0:02:55.4]} 8. d4 {[%clk 0:02:55.3]}
8... cxd4 {[%clk 0:02:56.1]} 9. Nxd4 {[%clk 0:02:56.1]} 9... Bd7 {[%clk
0:02:51.7]} 10. Nf3 {[%clk 0:02:41.3]} 10... Nf6 {[%clk 0:02:40.1]} 11. Be3
{[%clk 0:02:33.2]} 11... Qc7 {[%clk 0:02:37.2]} 12. h3 {[%clk 0:02:13.5]} 12...
Bd6 {[%clk 0:02:23.7]} 13. c4 {[%clk 0:02:12.5]} 13... O-O {[%clk 0:02:17.8]}
14. Nc3 {[%clk 0:02:12.3]} 14... Rad8 {[%clk 0:02:14.7]} 15. Rc1 {[%clk
0:02:09.6]} 15... Bf4 {[%clk 0:02:13.1]} 16. Qd2 {[%clk 0:02:07.8]} 16... Bxe3
{[%clk 0:02:10.4]} 17. Qxe3 {[%clk 0:02:08.7]} 17... Ne7 {[%clk 0:01:59.6]} 18.
Qe5 {[%clk 0:02:06.1]} 18... Qxe5 {[%clk 0:01:48]} 19. Nxe5 {[%clk 0:02:07]}
19... Nc6 {[%clk 0:01:45.4]} 20. Nf3 {[%clk 0:01:53.7]} 20... Rb8 {[%clk
0:01:20.6]} 21. Red1 {[%clk 0:01:52.9]} 21... Rfd8 {[%clk 0:01:20.6]} 22. a3
{[%clk 0:01:49.9]} 22... Be8 {[%clk 0:01:04.4]} 23. b4 {[%clk 0:01:49]} 23...
Kf8 {[%clk 0:01:03.7]} 24. c5 {[%clk 0:01:43.8]} 24... Ke7 {[%clk 0:00:58.6]}
25. g3 {[%clk 0:01:44]} 25... Rxd1 {[%clk 0:00:58.1]} 26. Rxd1 {[%clk
0:01:44.9]} 26... Rd8 {[%clk 0:00:58.7]} 27. Rxd8 {[%clk 0:01:44]} 27... Nxd8
{[%clk 0:00:59.3]} 28. Ne5 {[%clk 0:01:40.9]} 28... Nc6 {[%clk 0:00:53.9]} 29.
Nc4 {[%clk 0:01:40.7]} 29... Nd5 {[%clk 0:00:22.5]} 30. Nxd5+ {[%clk 0:01:24.3]}
30... exd5 {[%clk 0:00:22.5]} 31. Nd6 {[%clk 0:01:25.2]} 31... Nd4 {[%clk
0:00:12.7]} 32. Nxb7 {[%clk 0:01:19]} 32... Bb5 {[%clk 0:00:12.4]} 33. Bxb5
{[%clk 0:01:12.4]} 33... Nxb5 {[%clk 0:00:09.4]} 34. a4 {[%clk 0:01:02]} 34...
Nc3 {[%clk 0:00:09.7]} 35. a5 {[%clk 0:00:50.8]} 35... d4 {[%clk 0:00:08.2]} 36.
Kf1 {[%clk 0:00:50.6]} 36... Kd7 {[%clk 0:00:07.7]} 37. Ke1 {[%clk 0:00:48]}
37... Nd5 {[%clk 0:00:03.3]} 38. b5 {[%clk 0:00:48.5]} 38... axb5 {[%clk
0:00:04]} 39. a6 {[%clk 0:00:49.4]} 39... Kc8 {[%clk 0:00:01.9]} 40. Nd6+ {[%clk
0:00:49.1]} 40... Kb8 {[%clk 0:00:02.2]} 41. Nxb5 {[%clk 0:00:50]} 41... Nb4
{[%clk 0:00:01.8]} 42. a7+ {[%clk 0:00:50.3]} 42... Kb7 {[%clk 0:00:02.5]} 43.
Kd2 {[%clk 0:00:51.1]} 43... Na6 {[%clk 0:00:02.5]} 44. c6+ {[%clk 0:00:49.6]}
44... Ka8 {[%clk 0:00:02]} 45. c7 {[%clk 0:00:50.2]} 45... Nxc7 {[%clk
0:00:01.6]} 46. Nxc7+ {[%clk 0:00:51.1]} 1-0

[Event "Late-Titled-Tuesday-Blitz-April-16-2024"]
[Site "Chess.com"]
[Date "2024.04.16"]
[Round "4"]
[White "lagedema"]
[Black "BeanScreen"]
[Result "0-1"]
[WhiteElo "2433"]
[BlackElo "2662"]
[TimeControl "180+1"]
[EndTime "14:37:26 PDT"]
[Termination "BeanScreen won by resignation"]

1. e4 {[%clk 0:03:00.9]} 1... e5 {[%clk 0:03:00]} 2. Nf3 {[%clk 0:03:00.6]} 2...
Nc6 {[%clk 0:03:00.7]} 3. Bb5 {[%clk 0:03:00.6]} 3... f5 {[%clk 0:03:00.4]} 4.
Nc3 {[%clk 0:03:00]} 4... fxe4 {[%clk 0:02:59.7]} 5. Nxe4 {[%clk 0:03:00]} 5...
Nf6 {[%clk 0:03:00.2]} 6. Qe2 {[%clk 0:03:00.5]} 6... d5 {[%clk 0:02:58.8]} 7.
Nxf6+ {[%clk 0:02:56.9]} 7... gxf6 {[%clk 0:02:58.2]} 8. Nd4 {[%clk 0:02:45.5]}
8... Bd7 {[%clk 0:02:56.2]} 9. Qh5+ {[%clk 0:02:44]} 9... Ke7 {[%clk 0:02:56.2]}
10. Nf5+ {[%clk 0:02:36.1]} 10... Bxf5 {[%clk 0:02:55.8]} 11. Qxf5 {[%clk
0:02:37]} 11... Nd4 {[%clk 0:02:55.6]} 12. Qd3 {[%clk 0:02:37.2]} 12... c5
{[%clk 0:02:39.8]} 13. c4 {[%clk 0:02:06.6]} 13... a6 {[%clk 0:01:56]} 14. Ba4
{[%clk 0:02:06.3]} 14... dxc4 {[%clk 0:01:55.6]} 15. Qxc4 {[%clk 0:02:01.4]}
15... b5 {[%clk 0:01:54.2]} 16. Qxc5+ {[%clk 0:02:01.6]} 16... Kf7 {[%clk
0:01:52.1]} 17. Qc3 {[%clk 0:01:44]} 17... bxa4 {[%clk 0:01:52.3]} 18. Qc4+
{[%clk 0:01:31.8]} 18... Kg7 {[%clk 0:01:46.7]} 19. O-O {[%clk 0:01:29.6]} 19...
Qd7 {[%clk 0:01:30.8]} 20. h3 {[%clk 0:01:20.4]} 20... e4 {[%clk 0:01:21.4]} 21.
Re1 {[%clk 0:01:07.7]} 21... f5 {[%clk 0:00:58]} 22. Re3 {[%clk 0:00:57.8]}
22... Rc8 {[%clk 0:00:50.6]} 23. Rg3+ {[%clk 0:00:56.8]} 23... Kf6 {[%clk
0:00:49]} 24. Qxa6+ {[%clk 0:00:52.4]} 24... Qc6 {[%clk 0:00:48.1]} 25. Qf1
{[%clk 0:00:36.9]} 25... Qxc1 {[%clk 0:00:47.1]} 26. Rxc1 {[%clk 0:00:36.5]}
26... Rxc1 {[%clk 0:00:47.7]} 27. Qxc1 {[%clk 0:00:33.5]} 27... Ne2+ {[%clk
0:00:47.8]} 28. Kf1 {[%clk 0:00:34.3]} 28... Nxc1 {[%clk 0:00:48.2]} 29. Rc3
{[%clk 0:00:32.8]} 29... Nd3 {[%clk 0:00:46.5]} 30. Rc4 {[%clk 0:00:32.7]} 30...
a3 {[%clk 0:00:42.1]} 31. bxa3 {[%clk 0:00:32.2]} 31... Bxa3 {[%clk 0:00:43]}
32. g4 {[%clk 0:00:32.5]} 32... Rb8 {[%clk 0:00:38.7]} 33. gxf5 {[%clk
0:00:31.3]} 33... Rb1+ {[%clk 0:00:37.6]} 34. Kg2 {[%clk 0:00:31.9]} 34... Kxf5
{[%clk 0:00:33.5]} 35. f3 {[%clk 0:00:32.5]} 35... Ne1+ {[%clk 0:00:32.8]} 36.
Kf2 {[%clk 0:00:30.4]} 36... Bc5+ {[%clk 0:00:30]} 37. Rxc5+ {[%clk 0:00:30.1]}
37... Kf4 {[%clk 0:00:29.9]} 38. Rc7 {[%clk 0:00:19.6]} 38... Nd3+ {[%clk
0:00:28.1]} 39. Kg2 {[%clk 0:00:15.6]} 39... exf3+ {[%clk 0:00:28.7]} 40. Kh2
{[%clk 0:00:15.9]} 40... f2 {[%clk 0:00:29.5]} 41. Rf7+ {[%clk 0:00:15.7]} 41...
Ke5 {[%clk 0:00:29.4]} 42. Kg2 {[%clk 0:00:13.6]} 42... Rg1+ {[%clk 0:00:28.2]}
43. Kh2 {[%clk 0:00:12.9]} 43... f1=Q {[%clk 0:00:29.1]} 0-1

[Event "Late-Titled-Tuesday-Blitz-April-16-2024"]
[Site "Chess.com"]
[Date "2024.04.16"]
[Round "4"]
[White "Harsha_Bharathakoti"]
[Black "BabageldiAnnaberdiyev"]
[Result "1-0"]
[WhiteElo "2916"]
[BlackElo "2599"]
[TimeControl "180+1"]
[EndTime "14:37:27 PDT"]
[Termination "Harsha_Bharathakoti won on time"]

1. Nf3 {[%clk 0:03:00.9]} 1... c5 {[%clk 0:02:58.7]} 2. c4 {[%clk 0:02:52.8]}
2... Nc6 {[%clk 0:02:58.7]} 3. g3 {[%clk 0:02:52.8]} 3... g6 {[%clk 0:02:59.1]}
4. Bg2 {[%clk 0:02:53]} 4... Bg7 {[%clk 0:02:59.7]} 5. O-O {[%clk 0:02:53.7]}
5... d6 {[%clk 0:03:00.2]} 6. Nc3 {[%clk 0:02:53.9]} 6... e5 {[%clk 0:02:59.1]}
7. a3 {[%clk 0:02:51.9]} 7... a5 {[%clk 0:02:58.1]} 8. Ne1 {[%clk 0:02:50.5]}
8... Nge7 {[%clk 0:02:57.4]} 9. Nc2 {[%clk 0:02:50.9]} 9... Be6 {[%clk
0:02:56.4]} 10. Ne3 {[%clk 0:02:50.9]} 10... O-O {[%clk 0:02:55.3]} 11. Rb1
{[%clk 0:02:50.4]} 11... h5 {[%clk 0:02:52.3]} 12. d3 {[%clk 0:02:46.6]} 12...
h4 {[%clk 0:02:51.7]} 13. Ned5 {[%clk 0:02:46.9]} 13... h3 {[%clk 0:02:51.8]}
14. Bh1 {[%clk 0:02:46.3]} 14... Bxd5 {[%clk 0:02:33.3]} 15. cxd5 {[%clk
0:02:36.8]} 15... Nd4 {[%clk 0:02:32.2]} 16. e3 {[%clk 0:02:37.1]} 16... Ndf5
{[%clk 0:02:31.4]} 17. Qg4 {[%clk 0:02:35.5]} 17... Rb8 {[%clk 0:02:08.6]} 18.
a4 {[%clk 0:02:35.1]} 18... b6 {[%clk 0:02:05.9]} 19. Qxh3 {[%clk 0:02:33.4]}
19... Nc8 {[%clk 0:01:57.8]} 20. Bd2 {[%clk 0:02:28]} 20... Na7 {[%clk
0:01:57.1]} 21. Qg4 {[%clk 0:02:24.4]} 21... Nh6 {[%clk 0:01:50.1]} 22. Qe2
{[%clk 0:02:04]} 22... f5 {[%clk 0:01:48.8]} 23. Bg2 {[%clk 0:01:32.3]} 23...
Qd7 {[%clk 0:01:48.3]} 24. b3 {[%clk 0:01:32.2]} 24... Kh7 {[%clk 0:01:26.8]}
25. Qd1 {[%clk 0:01:20.9]} 25... Rh8 {[%clk 0:01:26.4]} 26. h3 {[%clk
0:01:19.5]} 26... Nf7 {[%clk 0:01:25]} 27. Ne2 {[%clk 0:01:15.8]} 27... Kg8
{[%clk 0:01:21]} 28. f4 {[%clk 0:01:01.8]} 28... b5 {[%clk 0:01:14.2]} 29. Qc2
{[%clk 0:00:58]} 29... b4 {[%clk 0:01:10.3]} 30. fxe5 {[%clk 0:00:44.8]} 30...
Nxe5 {[%clk 0:01:03.6]} 31. Nf4 {[%clk 0:00:44.3]} 31... Nc8 {[%clk 0:00:45.5]}
32. d4 {[%clk 0:00:44.3]} 32... cxd4 {[%clk 0:00:43.7]} 33. exd4 {[%clk
0:00:45.2]} 33... Nf7 {[%clk 0:00:43.2]} 34. Ne6 {[%clk 0:00:45.7]} 34... Nb6
{[%clk 0:00:29.8]} 35. Rbc1 {[%clk 0:00:36]} 35... Rc8 {[%clk 0:00:29.2]} 36.
Qd3 {[%clk 0:00:36.1]} 36... Bf6 {[%clk 0:00:22.8]} 37. g4 {[%clk 0:00:32.4]}
37... Rxc1 {[%clk 0:00:17.9]} 38. Bxc1 {[%clk 0:00:33.3]} 38... Rh4 {[%clk
0:00:11.8]} 39. Be3 {[%clk 0:00:28.4]} 1-0